fUST/lending_fUST_20250722
["ID","MTS","AMOUNT","RATE_DAILY","PERIOD"]
[373803170,1753117840407,-500.0,0.00021038,2]
[373803172,1753117840419,-500.0,0.00021038,2]
[373803174,1753117840429,-500.0,0.00021038,2]
[373803176,1753117840438,-500.0,0.00021038,2]
[373803178,1753117840450,-500.0,0.00021038,2]
[373803180,1753117840460,-396.94144046,0.00021038,2]
[373803182,1753117840471,-215.88781065,0.00021038,2]
[373803185,1753117840481,-500.0,0.00021038,2]
[373803187,1753117840491,-500.0,0.00021038,2]
[373803188,1753117840500,-500.0,0.00021038,2]
[373803191,1753117840511,-500.0,0.00021038,2]
[373803193,1753117840521,-500.0,0.00021038,2]
[373803195,1753117840530,-500.0,0.00021038,2]
[373803197,1753117840542,-554.88800281,0.00021038,2]
[373803199,1753117840552,-500.0,0.00021038,2]
[373803200,1753117840562,-506.12571095,0.00021038,2]
[373803202,1753117840571,-500.0,0.00021038,2]
[373803204,1753117840580,-500.0,0.00021038,2]
[373803206,1753117840590,-500.0,0.00021038,2]
[373803209,1753117840601,-307.10336813,0.00021038,2]
[373803210,1753117840610,-500.0,0.00021038,2]
[373803212,1753117840619,-500.0,0.00021038,2]
[373803215,1753117840631,-500.0,0.00021038,2]
[373803217,1753117840641,-500.0,0.00021038,2]
[373803219,1753117840650,-500.0,0.00021038,2]
[373803221,1753117840659,-403.29465754,0.00021038,2]
[373803223,1753117840669,-500.0,0.00021038,2]
[373803225,1753117840678,-500.0,0.00021038,2]
[373803227,1753117840688,-500.0,0.00021038,2]
[373803229,1753117840697,-500.0,0.00021038,2]
[373803231,1753117840706,-500.0,0.00021038,2]
[373803233,1753117840716,-500.0,0.00021038,2]
[373803235,1753117840725,-500.0,0.00021038,2]
[373803237,1753117840734,-500.0,0.00021038,2]
[373803239,1753117840744,-3000.0,0.0002104,2]
[373803241,1753117840754,-3000.0,0.0002105,2]
[373803243,1753117840764,-460.0,0.00021056,2]
[373803245,1753117840773,-460.0,0.00021056,2]
[373803247,1753117840783,-411.42,0.00021056,2]
[373803249,1753117840794,-460.0,0.00021056,2]
[373803251,1753117840804,-3000.0,0.0002106,2]
[373803253,1753117840814,-3000.0,0.0002107,2]
[373803255,1753117840824,-4226.93131731,0.00021072,4]
[373803257,1753117840834,-500.0,0.00021073,2]
[373803259,1753117840844,-3000.0,0.0002108,2]
[373803261,1753117840853,-3000.0,0.0002109,2]
[373803263,1753117840863,-3000.0,0.000211,2]
[373803265,1753117840873,-3000.0,0.0002111,2]
[373803267,1753117840882,-3000.0,0.0002112,2]
[373803269,1753117840892,-3000.0,0.0002113,2]
[373803271,1753117840902,-3000.0,0.0002114,2]
[373803274,1753117840912,-5915.094958,0.0002115,2]
[373803276,1753117840921,-4226.93131731,0.00021245,4]
[373803278,1753117840931,-460.0,0.0002133,2]
[373803280,1753117840940,-460.0,0.0002133,2]
[373803282,1753117840950,-460.0,0.0002133,2]
[373803284,1753117840959,-360.0,0.00021358,2]
[373803286,1753117840969,-4226.93131731,0.00021417,5]
[373803288,1753117840978,-151.0,0.00021555,5]
[373803289,1753117840988,-500.0,0.00021563,2]
[373803291,1753117840997,-4226.93131731,0.0002159,5]
[373803293,1753117841007,-460.0,0.00021604,2]
[373803296,1753117841016,-460.0,0.00021604,2]
[373803297,1753117841026,-460.0,0.00021604,2]
[373803298,1753117841035,-1000.0,0.00021621,2]
[373803299,1753117841044,-2602.7002511,0.00021662,2]
[373803300,1753117841055,-944.06675641,0.00021662,2]
[373803301,1753117841064,-223.0315306,0.00021667,2]
[373803302,1753117841073,-221579.97394021,0.00021739,2]
[373803303,1753117841082,-4226.93131731,0.00021762,5]
[373803304,1753117841091,-460.0,0.00021878,2]
[373803305,1753117841100,-460.0,0.00021878,2]
[373803306,1753117841110,-460.0,0.00021878,2]
[373803307,1753117841119,-240.0,0.00021906,2]
[373803308,1753117841128,-4226.93131731,0.00021934,6]
[373803309,1753117841137,-1154.2,0.00022,7]
[373803310,1753117841146,-192.0,0.00022,2]
[373803311,1753117841155,-151.0,0.00022031,5]
[373803312,1753117841165,-4226.93131731,0.00022107,6]
[373803313,1753117841174,-460.0,0.00022152,2]
[373803314,1753117841182,-403.10076979,0.00022152,2]
[373803315,1753117841191,-460.0,0.00022152,2]
[373803316,1753117841200,-500.0,0.00022168,2]
[373803317,1753117841210,-30036.91,0.000222,2]
[373803318,1753117841218,-4226.93131731,0.00022279,6]
[373803319,1753117841227,-460.0,0.00022426,2]
[373803321,1753117841244,-460.0,0.00022426,2]
[373803322,1753117841258,-4226.93131731,0.00022452,7]
[373803324,1753117841267,-2856.78,0.00022465,2]
[373803326,1753117841277,-151.0,0.00022506,5]
[373803328,1753117841289,-944.06675641,0.00022563,2]
[373803330,1753117841299,-4226.93131731,0.00022624,7]
[373803332,1753117841309,-460.0,0.000227,2]
[373803334,1753117841319,-333.73,0.000227,2]
[373803336,1753117841329,-4226.93131731,0.00022797,7]
[373803338,1753117841339,-7961.61,0.000228,7]
[373803340,1753117841349,-1202.87,0.000228,7]
[373803342,1753117841360,-4226.93131731,0.00022969,8]
[373803344,1753117841370,-460.0,0.00022974,2]
[373803346,1753117841384,-151.0,0.00022982,6]
[373803348,1753117841396,-160.0,0.00023,3]
[373803350,1753117841406,-160.0,0.00023,3]
[373803352,1753117841415,-160.0,0.00023,3]
[373803354,1753117841426,-231.02460978,0.00023,3]
[373803356,1753117841436,-160.0,0.00023,3]
[373803358,1753117841446,-160.0,0.00023,2]
[373803360,1753117841457,-839.74694734,0.00023,3]
[373803362,1753117841467,-231.28369723,0.00023036,2]
[373803365,1753117841477,-4226.93131731,0.00023141,8]
[373803367,1753117841487,-460.0,0.00023248,2]
[373803369,1753117841497,-150.585588,0.000233,8]
[373803371,1753117841507,-4226.93131731,0.00023314,9]
[373803373,1753117841516,-350.0,0.00023433,2]
[373803375,1753117841526,-500.0,0.00023433,2]
[373803377,1753117841535,-185.97147719,0.00023433,2]
[373803379,1753117841546,-151.0,0.00023457,6]
[373803381,1753117841556,-2602.70025109,0.00023464,2]
[373803383,1753117841566,-944.06675641,0.00023465,2]
[373803385,1753117841576,-500.0,0.00023483,2]
[373803387,1753117841587,-4226.93131731,0.00023486,9]
[373803389,1753117841597,-460.0,0.00023522,2]
[373803391,1753117841606,-610.0,0.00023541,2]
[373803393,1753117841616,-4226.93131731,0.00023659,9]
[373803395,1753117841625,-432.536,0.00023684,2]
[373803397,1753117841635,-30036.91,0.000237,2]
[373803399,1753117841644,-1154.2,0.000237,7]
[373803401,1753117841654,-150.585588,0.00023714,9]
[373803403,1753117841663,-610.0,0.00023743,2]
[373803405,1753117841674,-184.897418,0.00023744,2]
[373803407,1753117841684,-297.18008311,0.00023755,2]
[373803409,1753117841694,-460.0,0.00023796,2]
[373803411,1753117841705,-4226.93131731,0.00023831,10]
[373803413,1753117841714,-175.3238393,0.000239,2]
[373803415,1753117841724,-151.0,0.00023933,7]
[373803418,1753117841734,-298.92958728,0.00023949,5]
[373803420,1753117841743,-610.0,0.0002395,2]
[373803422,1753117841753,-564.483,0.00023989,2]
[373803424,1753117841763,-231.02460978,0.00024,7]
[373803426,1753117841773,-160.0,0.00024,7]
[373803428,1753117841782,-839.74694734,0.00024,7]
[373803430,1753117841794,-4226.93131731,0.00024003,10]
[373803432,1753117841803,-1000.0,0.00024031,2]
[373803434,1753117841813,-460.0,0.0002407,2]
[373803436,1753117841823,-564.483,0.00024089,2]
[373803438,1753117841832,-525.99222921,0.000241,10]
[373803440,1753117841842,-231.02460978,0.000241,10]
[373803442,1753117841851,-150.585588,0.00024115,2]
[373803444,1753117841861,-4226.93131731,0.00024176,10]
[373803446,1753117841871,-564.483,0.00024189,2]
[373803448,1753117841881,-1202.87,0.000242,7]
[373803450,1753117841891,-610.0,0.00024274,2]
[373803452,1753117841901,-564.483,0.00024289,2]
[373803455,1753117841911,-150.585588,0.00024292,3]
[373803457,1753117841921,-150.0,0.00024298,2]
[373803459,1753117841930,-648.0,0.00024298,2]
[373803461,1753117841940,-2156.0,0.00024298,2]
[373803463,1753117841950,-968.0,0.00024298,2]
[373803465,1753117841960,-7961.61,0.000243,7]
[373803467,1753117841971,-160.0,0.000243,10]
[373803469,1753117841980,-610.0,0.00024328,2]
[373803471,1753117841990,-610.0,0.00024332,2]
[373803473,1753117841999,-460.0,0.00024344,2]
[373803475,1753117842009,-4226.93131731,0.00024348,11]
[373803477,1753117842019,-944.06675641,0.00024366,2]
[373803479,1753117842028,-239.84119403,0.00024405,2]
[373803481,1753117842039,-151.0,0.00024408,7]
[373803483,1753117842048,-1407.788658,0.000245,2]
[373803485,1753117842058,-151.0,0.000245,9]
[373803487,1753117842068,-4226.93131731,0.00024521,11]
[373803489,1753117842077,-159.8396335,0.00024548,2]
[373803491,1753117842086,-610.0,0.00024567,2]
[373803493,1753117842095,-284.11420267,0.00024569,2]
[373803943,1753117846763,-160.0,0.00023,3]
[373803945,1753117846773,-325.88579733,0.00024569,2]
[373803947,1753117846783,-500.0,0.00024579,2]
[373803949,1753117846793,-610.0,0.00024613,2]
[373803951,1753117846803,-460.0,0.00024618,2]
[373803953,1753117846813,-610.0,0.0002462,2]
[373803955,1753117846822,-159.7589236,0.00024642,2]
[373803957,1753117846832,-576.958633,0.00024642,2]
[373803959,1753117846842,-180.7853963,0.00024642,2]
[373803961,1753117846851,-1158.5568069,0.00024642,2]
[373803963,1753117846861,-153.0,0.00024642,2]
[373803965,1753117846870,-153.0,0.00024642,2]
[373803968,1753117846880,-311.0154935,0.00024642,2]
[373803970,1753117846889,-153.0,0.00024642,2]
[373803972,1753117846898,-153.0,0.00024642,2]
[373803974,1753117846907,-153.0,0.00024642,2]
[373803976,1753117846917,-200.0,0.00024658,15]
[373803978,1753117846927,-610.0,0.00024673,2]
[373803980,1753117846936,-4226.93131731,0.00024693,11]
[373803982,1753117846946,-610.0,0.00024695,2]
[373803984,1753117846955,-200.0,0.0002474,11]
[373803986,1753117846964,-610.0,0.00024795,2]
[373803988,1753117846973,-11283.10563206,0.000248,2]
[373808215,1753118041981,159.385502,0.00027397,120]
[373808219,1753118520510,5365.85,0.00025371,50]
[373808227,1753118832250,-255.0,0.0001872,2]
[373808228,1753118832271,-548.0,0.00018862,2]
[373808229,1753118832291,-300.0,0.00018863,2]
[373808230,1753118832312,-300.0,0.00018863,2]
[373808231,1753118832332,-1200.0,0.00018863,2]
[373808232,1753118832354,-460.0,0.00018864,2]
[373808233,1753118832376,-460.0,0.00018864,2]
[373808234,1753118832397,-460.0,0.00018864,2]
[373808235,1753118832420,-460.0,0.00018864,2]
[373808236,1753118832445,-4630.93056746,0.000189,2]
[373808237,1753118832464,-1184.90908009,0.00019,4]
[373808238,1753118832484,-190.0,0.00019096,3]
[373808239,1753118832507,-460.0,0.00019138,2]
[373808240,1753118832529,-460.0,0.00019138,2]
[373808241,1753118832553,-460.0,0.00019138,2]
[373808242,1753118832579,-460.0,0.00019138,2]
[373808243,1753118832604,-4630.93056731,0.00019141,2]
[373808244,1753118832627,-193.229642,0.00019178,2]
[373808245,1753118832647,-666.0,0.00019178,2]
[373808246,1753118832685,-460.0,0.00019382,2]
[373808247,1753118832710,-460.0,0.00019382,2]
[373808248,1753118832733,-460.0,0.00019382,2]
[373808249,1753118832760,-4630.93056731,0.00019383,2]
[373808250,1753118832784,-460.0,0.00019412,2]
[373808251,1753118832808,-460.0,0.00019412,2]
[373808252,1753118832835,-460.0,0.00019412,2]
[373808253,1753118832859,-460.0,0.00019412,2]
[373808254,1753118832884,-783.67,0.00019412,2]
[373808255,1753118832908,-460.0,0.00019412,2]
[373808256,1753118832930,-460.0,0.00019414,2]
[373808257,1753118832955,-180.0,0.00019538,2]
[373808258,1753118832980,-2032.9644866,0.00019624,2]
[373808259,1753118845133,-189.40333272,0.00019092,2]
[373808264,1753118939826,170.463878,0.00013699,2]
[373808290,1753119032500,-302.9394212,0.00018997,2]
[373808291,1753119032510,-261.74600802,0.00019,20]
[373808292,1753119032520,-30.66175153,0.00019092,2]
[373808293,1753119032530,-302.9394212,0.00019187,2]
[373808294,1753119032539,-302.9394212,0.00019376,2]
[373808295,1753119032549,-300.0,0.00019381,2]
[373808296,1753119032560,-300.0,0.00019381,2]
[373808297,1753119032570,-460.0,0.00019382,2]
[373808298,1753119032579,-460.0,0.00019382,2]
[373808299,1753119032589,-460.0,0.00019382,2]
[373808300,1753119032598,-80.31139142,0.00019382,2]
[373808301,1753119032615,-379.68860858,0.00019382,2]
[373808303,1753119032625,-460.0,0.00019382,2]
[373808304,1753119032634,-496.29,0.00019382,2]
[373808305,1753119032643,-810.78117778,0.00019382,2]
[373808308,1753119032655,-212.18882222,0.00019382,2]
[373808310,1753119032664,-460.0,0.00019412,2]
[373808312,1753119032673,-124.35452436,0.00019566,2]
[373808319,1753119038581,-178.58489686,0.00019566,2]
[373808320,1753119038591,-610.67505659,0.00019586,2]
[373808321,1753119038600,-460.0,0.00019656,2]
[373808322,1753119038609,-173.36793713,0.00019656,2]
[373808323,1753119038620,-460.0,0.00019656,2]
[373808324,1753119038629,-164.21028227,0.00019681,2]
[373808325,1753119038643,-549.07999999,0.00019682,2]
[373808326,1753119038652,-460.0,0.00019682,2]
[373808327,1753119038662,-460.0,0.00019682,2]
[373808328,1753119038671,-460.0,0.00019682,2]
[373808329,1753119038680,-460.0,0.00019682,2]
[373808330,1753119038690,-460.0,0.00019682,2]
[373808331,1753119038699,-460.0,0.00019682,2]
[373808332,1753119038708,-460.0,0.00019682,2]
[373808333,1753119038722,-263.10485075,0.00019682,2]
[373808334,1753119038734,-196.89514925,0.00019682,2]
[373808335,1753119038743,-460.0,0.00019682,2]
[373808336,1753119038753,-460.0,0.00019682,2]
[373808337,1753119038762,-460.0,0.00019682,2]
[373808338,1753119038772,-460.0,0.00019682,2]
[373808339,1753119038781,-460.0,0.00019682,2]
[373808340,1753119038791,-460.0,0.00019682,2]
[373808341,1753119038801,-460.0,0.00019682,2]
[373808342,1753119038811,-201.75447825,0.00019682,2]
[373808343,1753119038821,-460.0,0.00019682,2]
[373808344,1753119038831,-522.42,0.00019682,2]
[373808345,1753119038840,-460.0,0.00019682,2]
[373808346,1753119038850,-498.9,0.00019682,2]
[373808347,1753119038860,-460.0,0.00019682,2]
[373808348,1753119038871,-460.0,0.00019682,2]
[373808349,1753119038880,-460.0,0.00019682,2]
[373808350,1753119038890,-482.14,0.00019682,2]
[373808351,1753119038900,-442.59658027,0.00019682,2]
[373808352,1753119038912,-17.40341973,0.00019682,2]
[373808353,1753119038921,-460.0,0.00019682,2]
[373808354,1753119038931,-409.34282167,0.00019682,2]
[373808355,1753119039361,-50.65717833,0.00019682,2]
[373808356,1753119039373,-460.0,0.00019682,2]
[373808357,1753119039382,-460.0,0.00019682,2]
[373808358,1753119039391,-184.0,0.00019682,2]
[373808359,1753119039400,-1022.97,0.00019682,2]
[373808360,1753119039410,-460.0,0.00019682,2]
[373808361,1753119039419,-460.0,0.00019682,2]
[373808362,1753119039428,-176.8182389,0.00019682,2]
[373808363,1753119039438,-339.04098475,0.00019682,2]
[373808364,1753119039447,-460.0,0.00019682,2]
[373808365,1753119039456,-267.86525477,0.00019682,2]
[373808366,1753119039468,-192.13474523,0.00019682,2]
[373808367,1753119039477,-95.98525477,0.00019683,2]
[373808407,1753119040743,-364.01474523,0.00019683,2]
[373808409,1753119040752,-391.05642028,0.00019683,2]
[373808411,1753119040764,-120.05533899,0.00019683,2]
[373808413,1753119040774,-460.0,0.00019683,2]
[373808415,1753119040783,-116.75678004,0.00019683,2]
[373808418,1753119040801,-343.24321996,0.00019683,2]
[373808420,1753119040812,-460.0,0.00019683,2]
[373808422,1753119040821,-460.0,0.00019683,2]
[373808424,1753119040830,-460.0,0.00019683,2]
[373808426,1753119040839,-460.0,0.00019683,2]
[373808428,1753119040848,-460.0,0.00019683,2]
[373808430,1753119040858,-969.79,0.00019683,2]
[373808431,1753119040867,-460.0,0.00019683,2]
[373808432,1753119040877,-460.0,0.00019684,2]
[373808433,1753119040886,-460.0,0.00019684,2]
[373808434,1753119040896,-460.0,0.00019684,2]
[373808435,1753119040906,-527.35429661,0.00019684,2]
[373808436,1753119040915,-580.02764968,0.00019684,2]
[373808437,1753119040925,-460.0,0.00019684,2]
[373808438,1753119040934,-460.0,0.00019684,2]
[373808439,1753119040943,-460.0,0.00019684,2]
[373808440,1753119040953,-460.0,0.00019684,2]
[373808441,1753119040963,-460.0,0.00019686,2]
[373808442,1753119040972,-460.0,0.00019686,2]
[373808443,1753119040981,-783.67,0.00019686,2]
[373808444,1753119040990,-482.96,0.00019686,2]
[373808445,1753119041001,-460.0,0.00019686,2]
[373808446,1753119041010,-171.55857309,0.00019688,2]
[373808447,1753119041019,-160.0,0.00019869,2]
[373808448,1753119041029,-231.02460978,0.00019869,2]
[373808449,1753119041038,-215.75719967,0.00019869,2]
[373808450,1753119041047,-160.0,0.00019869,2]
[373808451,1753119041056,-839.74694734,0.00019869,2]
[373808452,1753119041066,-160.0,0.00019869,2]
[373808453,1753119041074,-160.0,0.00019869,2]
[373808454,1753119041084,-160.0,0.00019869,2]
[373808455,1753119041093,-214.60209147,0.00019876,2]
[373808456,1753119041102,-281.95789548,0.0001993,2]
[373808457,1753119041111,-460.0,0.0001993,2]
[373808458,1753119041121,-529.46552197,0.00019956,2]
[373808459,1753119041131,-522.42,0.00019956,2]
[373808460,1753119041140,-460.0,0.00019956,2]
[373808461,1753119041149,-498.9,0.00019956,2]
[373808462,1753119041158,-460.0,0.00019956,2]
[373808463,1753119041168,-460.0,0.00019956,2]
[373808464,1753119041177,-535.86810709,0.00019956,2]
[373808465,1753119041186,-482.14,0.00019956,2]
[373808466,1753119041195,-460.0,0.00019956,2]
[373808467,1753119041204,-460.0,0.00019956,2]
[373808468,1753119041213,-460.0,0.00019956,2]
[373808469,1753119041222,-460.0,0.00019956,2]
[373808470,1753119041231,-595.26864793,0.00019956,2]
[373808471,1753119041241,-1022.97,0.00019956,2]
[373808472,1753119041250,-460.0,0.00019956,2]
[373808473,1753119041259,-460.0,0.00019957,2]
[373808474,1753119041268,-460.0,0.00019957,2]
[373808475,1753119041277,-969.79,0.00019957,2]
[373808476,1753119041287,-460.0,0.00019957,2]
[373808477,1753119041296,-460.0,0.00019958,2]
[373808478,1753119041305,-460.0,0.00019958,2]
[373808479,1753119041315,-460.0,0.00019958,2]
[373808480,1753119041324,-460.0,0.0001996,2]
[373808481,1753119041334,-460.0,0.0001996,2]
[373808482,1753119041344,-783.67,0.0001996,2]
[373808483,1753119041354,-460.0,0.0001996,2]
[373808484,1753119041364,-8703.52622966,0.0001996,2]
[373808485,1753119041376,-811.38726264,0.0001996,2]
[373808486,1753119041388,-383.1922272,0.0001996,2]
[373808498,1753119043663,-432.73892352,0.00019412,2]
[373808499,1753119043675,-27.26107648,0.00019412,2]
[373808500,1753119043685,-460.0,0.00019686,2]
[373808501,1753119043695,-97.92501764,0.000199,2]
[373808502,1753119043709,-4424.52161646,0.000199,2]
[373808503,1753119043721,-9755.73475166,0.0001996,2]
[373808504,1753119043732,-405.35845576,0.0001996,2]
[373808518,1753119046720,-374272.91526624,0.0001996,2]
[373809170,1753119117814,159.385502,0.00027397,120]
[373809171,1753119123576,1130.49095027,0.000189,2]
[373809172,1753119171325,-291.4162583,0.000189,2]
[373809173,1753119171350,-498.06,0.00019382,2]
[373809174,1753119171374,-460.0,0.00019382,2]
[373809175,1753119171399,-50.5237417,0.00019382,2]
[373809193,1753120052898,-432.94033328,0.000189,2]
[373809195,1753120166149,-514.99780576,0.000189,2]
[373809262,1753120232330,-183.177466,0.00019178,2]
[373809263,1753120232340,-83.98056826,0.00019382,2]
[373809264,1753120232351,-387.9839618,0.00019382,2]
[373809835,1753120242912,-328.74546994,0.00019382,2]
[373809837,1753120242921,-460.0,0.00019412,2]
[373809839,1753120242931,-1200.0,0.00019655,2]
[373809841,1753120242940,-800.71,0.00019656,2]
[373809843,1753120242950,-300.0,0.0001968,2]
[373809845,1753120242959,-298.4,0.00019681,2]
[373809847,1753120242968,-460.0,0.00019681,2]
[373809849,1753120242978,-493.58045866,0.00019681,2]
[373809851,1753120242987,-466.68,0.00019681,2]
[373809853,1753120242997,-460.0,0.00019682,2]
[373809855,1753120243006,-460.0,0.00019683,2]
[373809857,1753120243016,-460.0,0.00019683,2]
[373809859,1753120243025,-460.0,0.00019683,2]
[373809861,1753120243034,-269.97858466,0.00019686,2]
[373809863,1753120243046,-190.02141534,0.00019686,2]
[373809866,1753120243059,-460.0,0.00019874,2]
[373809868,1753120243068,-379.68860858,0.00019874,2]
[373809870,1753120243078,-460.0,0.00019875,2]
[373809872,1753120243087,-188.89501156,0.00019875,2]
[373809874,1753120243099,-460.0,0.00019875,2]
[373809876,1753120243109,-1065.5,0.00019875,2]
[373809877,1753120243118,-460.0,0.00019875,2]
[373809878,1753120243128,-463.85214761,0.00019875,2]
[373809879,1753120243137,-460.0,0.00019875,2]
[373809880,1753120243146,-460.0,0.00019875,2]
[373809881,1753120243157,-460.0,0.00019875,2]
[373809882,1753120243167,-460.0,0.00019875,2]
[373809883,1753120243175,-460.0,0.00019875,2]
[373809885,1753120243185,-460.0,0.00019875,2]
[373809887,1753120243194,-460.0,0.00019875,2]
[373809889,1753120243204,-360.25933762,0.00019875,2]
[373809891,1753120243213,-460.0,0.00019875,2]
[373809893,1753120243223,-982.78,0.00019875,2]
[373809895,1753120243232,-609.32,0.00019875,2]
[373809897,1753120243241,-598.37213994,0.00019875,2]
[373809899,1753120243251,-259.3534954,0.00019875,2]
[373809901,1753120243260,-319.64,0.00019875,2]
[373809903,1753120243269,-553.16,0.00019875,2]
[373809905,1753120243279,-460.0,0.00019875,2]
[373809907,1753120243288,-557.04,0.00019875,2]
[373809909,1753120243298,-460.0,0.00019875,2]
[373809911,1753120243307,-470.42,0.00019875,2]
[373809913,1753120243318,-460.0,0.00019875,2]
[373809915,1753120243327,-460.0,0.00019875,2]
[373809917,1753120243336,-460.0,0.00019875,2]
[373809919,1753120243345,-460.0,0.00019875,2]
[373809921,1753120243355,-447.56249243,0.00019899,2]
[373809928,1753120243402,-12.43750757,0.00019899,2]
[373809930,1753120243415,-25.46168681,0.000199,2]
[373810193,1753120245879,-3949.32999664,0.000199,2]
[373817055,1753120329695,592.65699424,0.000189,2]
[373817060,1753120791098,170.463878,0.00013699,2]
[373817064,1753121059406,1135.0,0.00025387,54]
[373817068,1753121229077,-187.17464461,0.00018523,6]
[373817069,1753121229098,-290.0,0.0001871,2]
[373817070,1753121229120,-217.0,0.0001871,2]
[373817071,1753121229141,-79.41869206,0.0001871,2]
[373817072,1753121374363,-644.58130794,0.0001871,2]
[373817073,1753121374387,-500.0,0.00018711,2]
[373817074,1753121374408,-500.0,0.00018711,2]
[373817075,1753121374437,-500.0,0.00018711,2]
[373817076,1753121374458,-500.0,0.00018711,2]
[373817077,1753121374479,-500.0,0.00018711,2]
[373817078,1753121374504,-377.48292787,0.00018711,2]
[373817123,1753121431973,-122.51707213,0.00018711,2]
[373817125,1753121431982,-160.10414539,0.00018711,2]
[373817127,1753121431992,-183.177466,0.00019178,2]
[373817129,1753121432002,-300.0,0.00019381,2]
[373817131,1753121432011,-480.0,0.00019381,2]
[373817133,1753121432020,-339.54906507,0.00019382,2]
[373817135,1753121432032,-120.45093493,0.00019382,2]
[373817137,1753121432041,-460.0,0.00019382,2]
[373817139,1753121432051,-460.0,0.00019382,2]
[373817141,1753121432060,-4.56660564,0.00019382,2]
[373817144,1753121432072,-455.43339436,0.00019382,2]
[373817146,1753121432082,-460.0,0.00019382,2]
[373817149,1753121432092,-460.0,0.00019656,2]
[373817151,1753121432101,-460.0,0.00019656,2]
[373817153,1753121432111,-460.0,0.00019656,2]
[373817155,1753121432120,-534.34067449,0.00019773,2]
[373817157,1753121432130,-460.0,0.00019872,2]
[373817159,1753121432140,-472.98111678,0.00019872,2]
[373817161,1753121432149,-460.0,0.00019872,2]
[373817163,1753121432158,-460.0,0.00019872,2]
[373817165,1753121432168,-386.54041967,0.00019872,2]
[373817167,1753121432179,-73.45958033,0.00019872,2]
[373817169,1753121432189,-744.72,0.00019872,2]
[373817171,1753121432198,-460.0,0.00019872,2]
[373817173,1753121432208,-460.0,0.00019872,2]
[373817175,1753121432219,-712.16,0.00019872,2]
[373817177,1753121432228,-460.0,0.00019872,2]
[373817179,1753121432238,-460.0,0.00019872,2]
[373817181,1753121432248,-496.29,0.00019872,2]
[373817183,1753121432257,-460.0,0.00019872,2]
[373817185,1753121432268,-460.0,0.00019872,2]
[373817187,1753121432278,-500.89911758,0.00019872,2]
[373817189,1753121432287,-460.0,0.00019872,2]
[373817191,1753121432298,-460.0,0.00019872,2]
[373817193,1753121432308,-460.0,0.00019872,2]
[373817195,1753121432318,-2140.70284674,0.00019873,2]
[373817197,1753121432328,-462.18515848,0.00019873,2]
[373817199,1753121432338,-460.0,0.00019873,2]
[373817202,1753121432348,-460.0,0.00019873,2]
[373817204,1753121432357,-466.3493268,0.00019873,2]
[373817206,1753121432367,-573.91063043,0.00019873,2]
[373817207,1753121432376,-460.0,0.00019873,2]
[373817209,1753121432386,-460.0,0.00019873,2]
[373817211,1753121432397,-462.30863829,0.00019873,2]
[373817214,1753121432408,-460.0,0.00019873,2]
[373817215,1753121432418,-460.0,0.00019873,2]
[373817217,1753121432427,-292.71564757,0.00019873,2]
[373817219,1753121432437,-460.0,0.00019873,2]
[373817221,1753121432447,-577.80975664,0.00019873,2]
[373817223,1753121432456,-460.0,0.00019873,2]
[373817225,1753121432466,-460.0,0.00019873,2]